[Event "*** Titled Tuesday Blitz"]
[Site "Chess.com"]
[Date "2020.11.03"]
[Round "2"]
[White "vanyakuba"]
[Black "AlexeiShirov"]
[Result "0-1"]
[WhiteElo "2513"]
[BlackElo "2789"]
[TimeControl "180+1"]
[EndTime "10:20:24 PST"]
[Termination "AlexeiShirov won by resignation"]

1. e4 {[%clk 0:03:00.9]} 1... e5 {[%clk 0:02:59.3]} 2. Nf3 {[%clk 0:03:00.7]}
2... Nc6 {[%clk 0:02:59.2]} 3. Bb5 {[%clk 0:02:58.8]} 3... a6 {[%clk 0:02:58.7]}
4. Ba4 {[%clk 0:02:59.1]} 4... Nf6 {[%clk 0:02:58.5]} 5. d3 {[%clk 0:02:58.9]}
5... d6 {[%clk 0:02:56.1]} 6. c3 {[%clk 0:02:58.5]} 6... g6 {[%clk 0:02:55.8]}
7. Nbd2 {[%clk 0:02:56.4]} 7... Bg7 {[%clk 0:02:55.6]} 8. Nf1 {[%clk 0:02:56.3]}
8... Nh5 {[%clk 0:02:42.4]} 9. d4 {[%clk 0:02:32.5]} 9... O-O {[%clk 0:02:24.7]}
10. Bg5 {[%clk 0:02:06.5]} 10... Qe8 {[%clk 0:02:17]} 11. d5 {[%clk 0:01:43.9]}
11... b5 {[%clk 0:02:14.8]} 12. dxc6 {[%clk 0:01:40.5]} 12... bxa4 {[%clk
0:02:13.5]} 13. Qxa4 {[%clk 0:01:41.1]} 13... f5 {[%clk 0:01:54]} 14. Ng3 {[%clk
0:01:01.2]} 14... Nf4 {[%clk 0:01:29.4]} 15. O-O-O {[%clk 0:00:56.7]} 15... h6
{[%clk 0:01:25.3]} 16. Bxf4 {[%clk 0:00:44]} 16... exf4 {[%clk 0:01:25.1]} 17.
Ne2 {[%clk 0:00:34.4]} 17... fxe4 {[%clk 0:01:24.2]} 18. Nfd4 {[%clk 0:00:34.6]}
18... Bg4 {[%clk 0:01:18.1]} 19. f3 {[%clk 0:00:30.4]} 19... exf3 {[%clk
0:01:09.8]} 20. gxf3 {[%clk 0:00:31.3]} 20... Bxf3 {[%clk 0:01:04.2]} 21. Nxf3
{[%clk 0:00:24.9]} 21... Qxe2 {[%clk 0:01:02.2]} 22. Rhf1 {[%clk 0:00:24.8]}
22... Rab8 {[%clk 0:00:58.3]} 23. Qc2 {[%clk 0:00:23.3]} 23... Qxc2+ {[%clk
0:00:52.8]} 24. Kxc2 {[%clk 0:00:24.2]} 24... Rb6 {[%clk 0:00:52.3]} 25. Nd4
{[%clk 0:00:15.7]} 25... g5 {[%clk 0:00:39]} 26. Ne6 {[%clk 0:00:11.1]} 26...
Rfb8 {[%clk 0:00:38.5]} 27. Nxc7 {[%clk 0:00:05.1]} 27... Rxb2+ {[%clk
0:00:37.6]} 28. Kd3 {[%clk 0:00:05.5]} 28... Kf7 {[%clk 0:00:30.7]} 29. Rde1
{[%clk 0:00:03.6]} 29... Rc8 {[%clk 0:00:26.7]} 30. Nd5 {[%clk 0:00:03.8]} 30...
Rxc6 {[%clk 0:00:25.1]} 31. Re7+ {[%clk 0:00:04.4]} 31... Kf8 {[%clk 0:00:23.8]}
32. Rfe1 {[%clk 0:00:04.6]} 32... Be5 {[%clk 0:00:21.5]} 33. Rh7 {[%clk
0:00:03.4]} 33... Rb5 {[%clk 0:00:19.2]} 34. c4 {[%clk 0:00:03.4]} 34... Rbc5
{[%clk 0:00:18.8]} 35. Ke4 {[%clk 0:00:02.8]} 35... Kg8 {[%clk 0:00:16.8]} 36.
Ra7 {[%clk 0:00:02.5]} 36... Rxc4+ {[%clk 0:00:15.3]} 37. Kf5 {[%clk 0:00:02.7]}
37... R6c5 {[%clk 0:00:15]} 38. Ne7+ {[%clk 0:00:02.8]} 38... Kf8 {[%clk
0:00:13.9]} 39. Ng6+ {[%clk 0:00:03]} 39... Ke8 {[%clk 0:00:13.9]} 40. Ke6
{[%clk 0:00:03.5]} 40... Kd8 {[%clk 0:00:14.1]} 41. Rb1 {[%clk 0:00:03.1]} 41...
Rb5 {[%clk 0:00:13.5]} 42. Rd1 {[%clk 0:00:03.4]} 42... Kc8 {[%clk 0:00:13.2]}
43. Re7 {[%clk 0:00:02.9]} 43... Rb2 {[%clk 0:00:12]} 44. Nf8 {[%clk 0:00:02.8]}
44... Rxa2 {[%clk 0:00:10.4]} 45. Kf7 {[%clk 0:00:02.8]} 45... Rb2 {[%clk
0:00:09.6]} 46. Ra1 {[%clk 0:00:02.9]} 46... Rb7 {[%clk 0:00:09]} 47. Rxa6
{[%clk 0:00:02.6]} 47... Rxe7+ {[%clk 0:00:08.7]} 48. Kxe7 {[%clk 0:00:03.5]}
48... Kb7 {[%clk 0:00:08.9]} 49. Ra2 {[%clk 0:00:02.9]} 49... Rb4 {[%clk
0:00:08.7]} 50. Ne6 {[%clk 0:00:02.8]} 50... Rb2 {[%clk 0:00:08.6]} 51. Ra4
{[%clk 0:00:02.2]} 51... Rxh2 {[%clk 0:00:07.6]} 52. Kd7 {[%clk 0:00:02.5]}
52... Kb6 {[%clk 0:00:07.4]} 53. Nd8 {[%clk 0:00:02.9]} 53... Kb5 {[%clk
0:00:07.2]} 54. Ra8 {[%clk 0:00:03.5]} 54... Kc4 {[%clk 0:00:06.7]} 55. Nc6
{[%clk 0:00:03.6]} 55... f3 {[%clk 0:00:06.1]} 56. Ra4+ {[%clk 0:00:04]} 56...
Kd3 {[%clk 0:00:06.1]} 57. Ra3+ {[%clk 0:00:03.8]} 57... Ke4 {[%clk 0:00:06.3]}
58. Ke6 {[%clk 0:00:04.2]} 58... f2 {[%clk 0:00:05.3]} 59. Ra4+ {[%clk
0:00:05.1]} 59... Kf3 {[%clk 0:00:05.2]} 60. Ra3+ {[%clk 0:00:04]} 60... Kg2
{[%clk 0:00:05.1]} 61. Ra2 {[%clk 0:00:04.4]} 61... Rh1 {[%clk 0:00:05.1]} 62.
Kd5 {[%clk 0:00:03.4]} 62... Rd1+ {[%clk 0:00:05]} 63. Ke6 {[%clk 0:00:03.3]}
63... Kg3 {[%clk 0:00:05.1]} 64. Ra3+ {[%clk 0:00:02.9]} 64... Kg4 {[%clk
0:00:05.3]} 65. Ra4+ {[%clk 0:00:02.9]} 65... Kh3 {[%clk 0:00:05.4]} 0-1

[Event "*** Titled Tuesday Blitz"]
[Site "Chess.com"]
[Date "2020.11.03"]
[Round "2"]
[White "Nuvas"]
[Black "krzyzan94"]
[Result "1/2-1/2"]
[WhiteElo "2242"]
[BlackElo "2643"]
[TimeControl "180+1"]
[EndTime "10:20:24 PST"]
[Termination "Game drawn by agreement"]

1. d4 {[%clk 0:03:00.2]} 1... Nf6 {[%clk 0:02:58.5]} 2. c4 {[%clk 0:03:00.4]}
2... d6 {[%clk 0:02:59.4]} 3. Nc3 {[%clk 0:02:58.5]} 3... e5 {[%clk 0:02:57.5]}
4. dxe5 {[%clk 0:02:58.6]} 4... dxe5 {[%clk 0:02:58.4]} 5. Qxd8+ {[%clk
0:02:58.5]} 5... Kxd8 {[%clk 0:02:59.3]} 6. Bd2 {[%clk 0:02:50.9]} 6... Nbd7
{[%clk 0:02:56.6]} 7. O-O-O {[%clk 0:02:44.3]} 7... c6 {[%clk 0:02:57.1]} 8. h3
{[%clk 0:02:38.2]} 8... Kc7 {[%clk 0:02:57.5]} 9. g4 {[%clk 0:02:38.3]} 9... a5
{[%clk 0:02:57.7]} 10. Bg2 {[%clk 0:02:29.9]} 10... Nc5 {[%clk 0:02:57.8]} 11.
Nf3 {[%clk 0:02:29.5]} 11... Nfd7 {[%clk 0:02:57.2]} 12. Ng5 {[%clk 0:02:28.2]}
12... f6 {[%clk 0:02:57.4]} 13. Nge4 {[%clk 0:02:28.7]} 13... Nxe4 {[%clk
0:02:57.1]} 14. Nxe4 {[%clk 0:02:27.2]} 14... Nc5 {[%clk 0:02:57.1]} 15. f4
{[%clk 0:02:21.2]} 15... Nxe4 {[%clk 0:02:54.3]} 16. Bxe4 {[%clk 0:02:21.6]}
16... Bd6 {[%clk 0:02:55.2]} 17. f5 {[%clk 0:02:09.3]} 17... a4 {[%clk
0:02:53.7]} 18. h4 {[%clk 0:02:04.4]} 18... Bc5 {[%clk 0:02:46.8]} 19. Kc2
{[%clk 0:02:01.1]} 19... Bd7 {[%clk 0:02:35.3]} 20. Rh3 {[%clk 0:01:51.4]} 20...
Raf8 {[%clk 0:02:18.3]} 21. Rd3 {[%clk 0:01:47.6]} 21... Bc8 {[%clk 0:02:18]}
22. h5 {[%clk 0:01:21.2]} 22... h6 {[%clk 0:02:11.2]} 23. b4 {[%clk 0:01:20.7]}
23... axb3+ {[%clk 0:02:10.6]} 24. axb3 {[%clk 0:01:21.1]} 24... Rd8 {[%clk
0:01:47.6]} 25. Ba5+ {[%clk 0:00:49.8]} 25... b6 {[%clk 0:01:46.4]} 26. Rxd8
{[%clk 0:00:43.5]} 26... Rxd8 {[%clk 0:01:47.3]} 27. Rxd8 {[%clk 0:00:43.9]}
27... Kxd8 {[%clk 0:01:48.1]} 28. Bd2 {[%clk 0:00:44.2]} 28... Kc7 {[%clk
0:01:47.6]} 29. Kd3 {[%clk 0:00:41.3]} 29... Ba6 {[%clk 0:01:40.7]} 30. Kc3
{[%clk 0:00:41.6]} 30... Bd4+ {[%clk 0:01:40.5]} 31. Kc2 {[%clk 0:00:42.1]}
31... Bf2 {[%clk 0:01:27.7]} 32. Bb4 {[%clk 0:00:41.9]} 32... c5 {[%clk
0:01:25.7]} 33. Bd2 {[%clk 0:00:42]} 33... Kd6 {[%clk 0:01:23]} 34. Kd3 {[%clk
0:00:40.4]} 34... b5 {[%clk 0:01:21.5]} 35. e3 {[%clk 0:00:40]} 35... bxc4+
{[%clk 0:01:18.6]} 36. bxc4 {[%clk 0:00:40.9]} 36... Bc8 {[%clk 0:01:16.9]} 37.
Ke2 {[%clk 0:00:39.9]} 37... Bh4 {[%clk 0:01:16.3]} 38. Kf3 {[%clk 0:00:30.1]}
38... Bd7 {[%clk 0:01:15.3]} 39. Kg2 {[%clk 0:00:26.4]} 39... Ba4 {[%clk
0:01:13.4]} 40. Kh3 {[%clk 0:00:26.2]} 40... Bg5 {[%clk 0:01:13.3]} 41. Kg2
{[%clk 0:00:24.5]} 41... Bb3 {[%clk 0:01:09.8]} 42. Bd5 {[%clk 0:00:23.7]} 42...
Bc2 {[%clk 0:01:05.5]} 43. Kg3 {[%clk 0:00:20.5]} 43... e4 {[%clk 0:00:53.9]}
44. Kh3 {[%clk 0:00:16.5]} 44... Kc7 {[%clk 0:00:47.6]} 45. Ba5+ {[%clk
0:00:15.6]} 45... Kd7 {[%clk 0:00:47.9]} 46. Bd2 {[%clk 0:00:15.6]} 46... Kd6
{[%clk 0:00:47.1]} 47. Kg3 {[%clk 0:00:16]} 47... Bd3 {[%clk 0:00:46.6]} 48. Kh3
{[%clk 0:00:15.7]} 48... Kc7 {[%clk 0:00:41.3]} 49. Ba5+ {[%clk 0:00:15]} 49...
Kb8 {[%clk 0:00:41.8]} 50. Bd2 {[%clk 0:00:12.5]} 50... Ka7 {[%clk 0:00:42.3]}
51. Kg3 {[%clk 0:00:12.4]} 51... Kb6 {[%clk 0:00:42.2]} 52. Kf2 {[%clk
0:00:12.6]} 52... Bh4+ {[%clk 0:00:41.8]} 53. Kg2 {[%clk 0:00:12.7]} 53... Bc2
{[%clk 0:00:38.8]} 54. Kh3 {[%clk 0:00:12.4]} 54... Bg5 {[%clk 0:00:27.8]} 55.
Kg3 {[%clk 0:00:12.7]} 55... Bb3 {[%clk 0:00:22.1]} 56. Kh3 {[%clk 0:00:12.6]}
56... Ba2 {[%clk 0:00:21.3]} 57. Kg3 {[%clk 0:00:12.9]} 57... Bb1 {[%clk
0:00:13.2]} 58. Kh3 {[%clk 0:00:12.9]} 58... Kc7 {[%clk 0:00:13.8]} 59. Kg3
{[%clk 0:00:12.8]} 59... Kd6 {[%clk 0:00:14.3]} 60. Kh3 {[%clk 0:00:12.8]} 60...
Bc2 {[%clk 0:00:12.6]} 61. Kg3 {[%clk 0:00:13]} 61... Bd3 {[%clk 0:00:07.4]} 62.
Kh3 {[%clk 0:00:13]} 62... Be2 {[%clk 0:00:07.8]} 63. Kg3 {[%clk 0:00:12.9]}
63... Bf3 {[%clk 0:00:07.5]} 64. Kh3 {[%clk 0:00:11.9]} 64... Kc7 {[%clk
0:00:06.7]} 65. Ba5+ {[%clk 0:00:11.2]} 65... Kb8 {[%clk 0:00:05.6]} 66. Bd2
{[%clk 0:00:11]} 66... Ka7 {[%clk 0:00:06.3]} 67. Kg3 {[%clk 0:00:11.3]} 67...
Kb6 {[%clk 0:00:07]} 68. Kh3 {[%clk 0:00:11.7]} 68... Ka6 {[%clk 0:00:04.3]} 69.
Kg3 {[%clk 0:00:11.8]} 69... Kb6 {[%clk 0:00:03.9]} 1/2-1/2

[Event "*** Titled Tuesday Blitz"]
[Site "Chess.com"]
[Date "2020.11.03"]
[Round "2"]
[White "Kobalia"]
[Black "TST2014"]
[Result "1/2-1/2"]
[WhiteElo "2729"]
[BlackElo "2495"]
[TimeControl "180+1"]
[EndTime "10:20:30 PST"]
[Termination "Game drawn - insufficient material"]

1. e4 {[%clk 0:03:00.9]} 1... e5 {[%clk 0:02:59.4]} 2. Nf3 {[%clk 0:03:00.4]}
2... Nc6 {[%clk 0:02:59.1]} 3. Bb5 {[%clk 0:03:00.2]} 3... a6 {[%clk 0:02:58.3]}
4. Ba4 {[%clk 0:02:59.7]} 4... Nf6 {[%clk 0:02:57.9]} 5. O-O {[%clk 0:02:59.4]}
5... Be7 {[%clk 0:02:55.7]} 6. d3 {[%clk 0:02:59.5]} 6... b5 {[%clk 0:02:56]} 7.
Bb3 {[%clk 0:02:58.8]} 7... d6 {[%clk 0:02:56.5]} 8. a4 {[%clk 0:02:57.6]} 8...
b4 {[%clk 0:02:53.9]} 9. a5 {[%clk 0:02:56.5]} 9... Rb8 {[%clk 0:02:51.8]} 10.
Nbd2 {[%clk 0:02:56.4]} 10... O-O {[%clk 0:02:49.2]} 11. Nc4 {[%clk 0:02:56.3]}
11... h6 {[%clk 0:02:45.1]} 12. h3 {[%clk 0:02:39.6]} 12... Be6 {[%clk
0:02:44.5]} 13. c3 {[%clk 0:02:37.9]} 13... Re8 {[%clk 0:02:28.7]} 14. Ba4
{[%clk 0:02:36.8]} 14... Bd7 {[%clk 0:02:27.3]} 15. Be3 {[%clk 0:02:35.9]} 15...
Bf8 {[%clk 0:02:22.5]} 16. Re1 {[%clk 0:02:18]} 16... g6 {[%clk 0:02:04.3]} 17.
Qc1 {[%clk 0:02:10.9]} 17... Kh7 {[%clk 0:02:03.7]} 18. Nfd2 {[%clk 0:02:09.6]}
18... Bg7 {[%clk 0:02:02.1]} 19. Nf3 {[%clk 0:01:45.3]} 19... bxc3 {[%clk
0:01:43.8]} 20. bxc3 {[%clk 0:01:44.5]} 20... d5 {[%clk 0:01:39.3]} 21. exd5
{[%clk 0:01:41.3]} 21... Nxd5 {[%clk 0:01:39.1]} 22. Bd2 {[%clk 0:01:41.4]}
22... f6 {[%clk 0:01:36.1]} 23. Qc2 {[%clk 0:01:25.8]} 23... Na7 {[%clk
0:01:28.4]} 24. d4 {[%clk 0:01:19.6]} 24... Bxa4 {[%clk 0:01:20.9]} 25. Rxa4
{[%clk 0:01:15.4]} 25... exd4 {[%clk 0:01:08.8]} 26. Rxe8 {[%clk 0:01:10.1]}
26... Qxe8 {[%clk 0:01:07.3]} 27. Nxd4 {[%clk 0:01:10.3]} 27... Nb5 {[%clk
0:01:02.1]} 28. Ra1 {[%clk 0:01:09.8]} 28... c5 {[%clk 0:00:53.3]} 29. Nxb5
{[%clk 0:01:03.5]} 29... Qxb5 {[%clk 0:00:52.6]} 30. Ne3 {[%clk 0:01:01.8]}
30... c4 {[%clk 0:00:47.4]} 31. Qe4 {[%clk 0:00:31.5]} 31... Nxe3 {[%clk
0:00:43.6]} 32. Bxe3 {[%clk 0:00:31.2]} 32... f5 {[%clk 0:00:36.5]} 33. Qe7
{[%clk 0:00:30.4]} 33... Rb7 {[%clk 0:00:36.4]} 34. Qa3 {[%clk 0:00:27.3]} 34...
Qb3 {[%clk 0:00:32.8]} 35. Bd4 {[%clk 0:00:20.4]} 35... Bxd4 {[%clk 0:00:29.6]}
36. cxd4 {[%clk 0:00:19]} 36... Qxa3 {[%clk 0:00:29.9]} 37. Rxa3 {[%clk
0:00:18.7]} 37... Rb1+ {[%clk 0:00:29.7]} 38. Kh2 {[%clk 0:00:18.1]} 38... Rd1
{[%clk 0:00:30.3]} 39. Re3 {[%clk 0:00:17.5]} 39... Rxd4 {[%clk 0:00:28.8]} 40.
Re7+ {[%clk 0:00:17.5]} 40... Kg8 {[%clk 0:00:28.6]} 41. Re6 {[%clk 0:00:18.4]}
41... c3 {[%clk 0:00:26.6]} 42. Rc6 {[%clk 0:00:16.2]} 42... Rd5 {[%clk
0:00:24.9]} 43. Rxg6+ {[%clk 0:00:13.6]} 43... Kf7 {[%clk 0:00:24.5]} 44. Rc6
{[%clk 0:00:12.8]} 44... Rxa5 {[%clk 0:00:24.1]} 45. Rxc3 {[%clk 0:00:12.7]}
45... Ra2 {[%clk 0:00:24.7]} 46. Kg3 {[%clk 0:00:12]} 46... a5 {[%clk
0:00:24.3]} 47. Rc6 {[%clk 0:00:11.2]} 47... Kg7 {[%clk 0:00:22.6]} 48. Ra6
{[%clk 0:00:10.7]} 48... a4 {[%clk 0:00:22.9]} 49. Kf3 {[%clk 0:00:10.5]} 49...
a3 {[%clk 0:00:23.1]} 50. g3 {[%clk 0:00:10.5]} 50... h5 {[%clk 0:00:22.8]} 51.
h4 {[%clk 0:00:10.1]} 51... Kf7 {[%clk 0:00:22.6]} 52. Ke3 {[%clk 0:00:09.9]}
52... Kg7 {[%clk 0:00:22.2]} 53. f3 {[%clk 0:00:10.2]} 53... Ra1 {[%clk
0:00:14.3]} 54. Kf4 {[%clk 0:00:09.9]} 54... a2 {[%clk 0:00:14.9]} 55. Ra7+
{[%clk 0:00:02.9]} 55... Kf6 {[%clk 0:00:14.5]} 56. Ra6+ {[%clk 0:00:03.2]}
56... Kg7 {[%clk 0:00:15]} 57. Kg5 {[%clk 0:00:03.1]} 57... Rg1 {[%clk
0:00:13.8]} 58. Rxa2 {[%clk 0:00:01.8]} 58... Rxg3+ {[%clk 0:00:13.5]} 59. Kf4
{[%clk 0:00:02.1]} 59... Rh3 {[%clk 0:00:13.7]} 60. Ra7+ {[%clk 0:00:02]} 60...
Kg6 {[%clk 0:00:13.6]} 61. Ra6+ {[%clk 0:00:02.5]} 61... Kg7 {[%clk 0:00:13.8]}
62. Kxf5 {[%clk 0:00:02.6]} 62... Rxf3+ {[%clk 0:00:12.8]} 63. Kg5 {[%clk
0:00:02.1]} 63... Rg3+ {[%clk 0:00:12.8]} 64. Kxh5 {[%clk 0:00:01.7]} 64... Kh7
{[%clk 0:00:13.2]} 65. Ra7+ {[%clk 0:00:02]} 65... Rg7 {[%clk 0:00:13.3]} 66.
Rxg7+ {[%clk 0:00:01.9]} 66... Kxg7 {[%clk 0:00:13.5]} 67. Kg5 {[%clk
0:00:02.8]} 67... Kh7 {[%clk 0:00:14.1]} 68. h5 {[%clk 0:00:03.7]} 68... Kg7
{[%clk 0:00:14.6]} 69. h6+ {[%clk 0:00:04.6]} 69... Kh7 {[%clk 0:00:15.1]} 70.
Kh5 {[%clk 0:00:04.2]} 70... Kh8 {[%clk 0:00:15.3]} 71. h7 {[%clk 0:00:04.7]}
71... Kxh7 {[%clk 0:00:15.4]} 1/2-1/2

[Event "*** Titled Tuesday Blitz"]
[Site "Chess.com"]
[Date "2020.11.03"]
[Round "2"]
[White "Zhigalko_Sergei"]
[Black "Caracternin123"]
[Result "1-0"]
[WhiteElo "2914"]
[BlackElo "2594"]
[TimeControl "180+1"]
[EndTime "10:20:33 PST"]
[Termination "Zhigalko_Sergei won by checkmate"]

1. e4 {[%clk 0:03:00.8]} 1... Nf6 {[%clk 0:02:59.6]} 2. e5 {[%clk 0:03:01.1]}
2... Nd5 {[%clk 0:03:00]} 3. d4 {[%clk 0:02:59.4]} 3... d6 {[%clk 0:03:00.2]} 4.
Nf3 {[%clk 0:02:59.9]} 4... g6 {[%clk 0:03:00.8]} 5. Bc4 {[%clk 0:02:59.5]} 5...
Nb6 {[%clk 0:03:01.3]} 6. Bb3 {[%clk 0:02:59.7]} 6... Bg7 {[%clk 0:03:01.9]} 7.
Qe2 {[%clk 0:03:00.1]} 7... O-O {[%clk 0:03:01.8]} 8. h3 {[%clk 0:03:00.4]} 8...
c5 {[%clk 0:03:01.6]} 9. dxc5 {[%clk 0:02:59.9]} 9... dxc5 {[%clk 0:03:02.5]}
10. O-O {[%clk 0:03:00.3]} 10... c4 {[%clk 0:03:01.2]} 11. Bxc4 {[%clk
0:02:59.8]} 11... Nxc4 {[%clk 0:03:02.1]} 12. Qxc4 {[%clk 0:03:00.7]} 12... Nc6
{[%clk 0:03:02.8]} 13. Re1 {[%clk 0:02:59.8]} 13... Bf5 {[%clk 0:03:00.3]} 14.
Na3 {[%clk 0:02:16.4]} 14... a6 {[%clk 0:02:20.3]} 15. Qh4 {[%clk 0:02:09.2]}
15... Rc8 {[%clk 0:02:10.2]} 16. Bh6 {[%clk 0:02:07]} 16... Qb6 {[%clk
0:02:04.6]} 17. Nc4 {[%clk 0:01:29.7]} 17... Qc5 {[%clk 0:01:30.4]} 18. Bxg7
{[%clk 0:01:28.9]} 18... Kxg7 {[%clk 0:01:29.6]} 19. c3 {[%clk 0:01:29.4]} 19...
h6 {[%clk 0:01:23.9]} 20. Rad1 {[%clk 0:01:13.5]} 20... Rfd8 {[%clk 0:01:23.6]}
21. b4 {[%clk 0:01:07.1]} 21... Qb5 {[%clk 0:01:19.4]} 22. Ne3 {[%clk
0:01:02.5]} 22... Be6 {[%clk 0:01:17]} 23. a3 {[%clk 0:00:56.1]} 23... Nxe5
{[%clk 0:01:01]} 24. Nd4 {[%clk 0:00:54.6]} 24... Qb6 {[%clk 0:00:58]} 25. Qxe7
{[%clk 0:00:52.9]} 25... Re8 {[%clk 0:00:49.9]} 26. Qh4 {[%clk 0:00:38.6]} 26...
Rxc3 {[%clk 0:00:46.7]} 27. Qg3 {[%clk 0:00:38.7]} 27... Nd3 {[%clk 0:00:45]}
28. Nef5+ {[%clk 0:00:32]} 28... Kh7 {[%clk 0:00:43]} 29. Rxd3 {[%clk
0:00:23.9]} 29... Rxd3 {[%clk 0:00:37.1]} 30. Qe5 {[%clk 0:00:14.7]} 30... gxf5
{[%clk 0:00:20.2]} 31. Nxf5 {[%clk 0:00:15.2]} 31... Rg8 {[%clk 0:00:19.7]} 32.
Ne7 {[%clk 0:00:09.2]} 32... Rg5 {[%clk 0:00:12.5]} 33. Qe4+ {[%clk 0:00:08.8]}
33... Bf5 {[%clk 0:00:11.6]} 34. Nxf5 {[%clk 0:00:08.2]} 34... Rd8 {[%clk
0:00:04.5]} 35. Nd6+ {[%clk 0:00:03.4]} 35... Kh8 {[%clk 0:00:03.4]} 36. Nxf7+
{[%clk 0:00:03.4]} 36... Kg7 {[%clk 0:00:04.1]} 37. Nxg5 {[%clk 0:00:03.4]}
37... hxg5 {[%clk 0:00:03.4]} 38. Qe7+ {[%clk 0:00:04]} 38... Kg8 {[%clk
0:00:03.4]} 39. Qxg5+ {[%clk 0:00:03.9]} 39... Kf8 {[%clk 0:00:03.4]} 40. Qf4+
{[%clk 0:00:03.7]} 40... Kg7 {[%clk 0:00:03.9]} 41. Qg5+ {[%clk 0:00:03.7]}
41... Kf8 {[%clk 0:00:04.3]} 42. Re3 {[%clk 0:00:04.2]} 42... Rd1+ {[%clk
0:00:03.8]} 43. Kh2 {[%clk 0:00:04.5]} 43... Qd6+ {[%clk 0:00:04.7]} 44. Rg3
{[%clk 0:00:04.9]} 44... Rf1 {[%clk 0:00:04.1]} 45. Qg8+ {[%clk 0:00:03.8]}
45... Ke7 {[%clk 0:00:04.6]} 46. Qg7+ {[%clk 0:00:04.5]} 46... Kd8 {[%clk
0:00:04.6]} 47. Qxb7 {[%clk 0:00:03.8]} 47... Rxf2 {[%clk 0:00:01.9]} 48. Qa8+
{[%clk 0:00:04]} 48... Kd7 {[%clk 0:00:01.2]} 49. Qe4 {[%clk 0:00:04.5]} 49...
Kd8 {[%clk 0:00:01.4]} 50. Qh4+ {[%clk 0:00:04.4]} 50... Kc8 {[%clk 0:00:01.5]}
51. Qh8+ {[%clk 0:00:03.9]} 51... Rf8 {[%clk 0:00:02.2]} 52. Qg7 {[%clk
0:00:03.9]} 52... Kb8 {[%clk 0:00:02.1]} 53. Qg6 {[%clk 0:00:04]} 53... Qc7
{[%clk 0:00:01.9]} 54. Qg7 {[%clk 0:00:03.8]} 54... Rd8 {[%clk 0:00:02.5]} 55.
Qxc7+ {[%clk 0:00:03.8]} 55... Kxc7 {[%clk 0:00:03.4]} 56. Rg7+ {[%clk
0:00:04.4]} 56... Kb6 {[%clk 0:00:03.6]} 57. Rg6+ {[%clk 0:00:05.3]} 57... Kb5
{[%clk 0:00:04.2]} 58. Rg5+ {[%clk 0:00:05.8]} 58... Kb6 {[%clk 0:00:04.2]} 59.
Ra5 {[%clk 0:00:06.7]} 59... Rd3 {[%clk 0:00:04.5]} 60. h4 {[%clk 0:00:06.8]}
60... Rb3 {[%clk 0:00:05]} 61. h5 {[%clk 0:00:07.1]} 61... Rd3 {[%clk
0:00:05.7]} 62. g3 {[%clk 0:00:07.5]} 62... Rd6 {[%clk 0:00:06.4]} 63. Kh3
{[%clk 0:00:07.9]} 63... Rd4 {[%clk 0:00:06.5]} 64. g4 {[%clk 0:00:08]} 64...
Rd3+ {[%clk 0:00:06.8]} 65. Kh4 {[%clk 0:00:08.5]} 65... Rxa3 {[%clk 0:00:06.5]}
66. Rxa3 {[%clk 0:00:08.3]} 66... Kb5 {[%clk 0:00:07.1]} 67. Rxa6 {[%clk
0:00:08.8]} 67... Kxb4 {[%clk 0:00:08]} 68. h6 {[%clk 0:00:09.6]} 68... Kb5
{[%clk 0:00:08.5]} 69. h7 {[%clk 0:00:10.5]} 69... Kxa6 {[%clk 0:00:09.2]} 70.
h8=Q {[%clk 0:00:11.1]} 70... Kb5 {[%clk 0:00:09.8]} 71. Qe5+ {[%clk 0:00:11.8]}
71... Kc4 {[%clk 0:00:10.6]} 72. g5 {[%clk 0:00:12.3]} 72... Kd3 {[%clk
0:00:11.1]} 73. g6 {[%clk 0:00:13.2]} 73... Kc4 {[%clk 0:00:11.5]} 74. Kg5
{[%clk 0:00:14.1]} 74... Kd3 {[%clk 0:00:10.5]} 75. Kf5 {[%clk 0:00:15]} 75...
Kc4 {[%clk 0:00:10.8]} 76. g7 {[%clk 0:00:15.6]} 76... Kb3 {[%clk 0:00:11.4]}
77. g8=Q+ {[%clk 0:00:15.4]} 77... Kc2 {[%clk 0:00:12.3]} 78. Qg2+ {[%clk
0:00:15.4]} 78... Kd3 {[%clk 0:00:12.7]} 79. Qf3+ {[%clk 0:00:15.7]} 79... Kc2
{[%clk 0:00:12.8]} 80. Qee2+ {[%clk 0:00:15.6]} 80... Kc1 {[%clk 0:00:13]} 81.
Qff1# {[%clk 0:00:16.2]} 1-0